bitfinex/quotes_BTCUSD_20250225
["timestamp","ask_amount","ask_price","bid_price","bid_amount"]
[1740497366866,0.052768,86955.0,86921.0,0.040268]
[1740497367165,0.05313181,86951.0,86919.0,0.09208686]
[1740497367369,0.05313181,86949.0,86919.0,0.09208686]
[1740497367593,0.02542043,86974.0,86909.0,0.10081378]
[1740497367594,0.05339645,86944.0,86909.0,0.09208686]
[1740497367794,0.172564,86925.0,86909.0,0.09208686]
[1740497368000,0.3,86946.0,86909.0,0.0936976]
[1740497368119,0.05379342,86936.0,86909.0,0.09208686]
[1740497368323,0.05415738,86930.0,86904.0,0.01568]
[1740497368810,0.0454,86948.0,86881.0,0.13958686]
[1740497368811,0.05452136,86928.0,86889.0,0.01568]
[1740497368986,0.172626,86893.0,86889.0,0.01568]
[1740497369196,0.172632,86890.0,86889.0,0.01568]
[1740497369623,0.3,86912.0,86889.0,0.01568]
[1740497369800,0.05561363,86911.0,86889.0,0.01568]
[1740497370026,0.05561363,86911.0,86891.0,0.09208686]
[1740497370245,0.05561363,86911.0,86885.0,0.0008478]
[1740497370246,0.17261,86901.0,86900.0,0.0008476]
[1740497370401,0.02524457,86918.0,86900.0,0.0008476]
[1740497370597,0.862,86917.0,86902.0,0.172607]
[1740497370808,0.862,86917.0,86900.0,0.0008476]
[1740497371863,0.05508399,86916.0,86900.0,0.0008476]
[1740497372397,0.28519299,86916.0,86900.0,0.0008476]
[1740497372603,0.172595,86909.0,86900.0,0.0008476]
[1740497372862,0.230121,86911.0,86900.0,0.0008476]
[1740497372863,0.05508399,86916.0,86900.0,0.0008476]
[1740497373215,0.17261,86901.0,86900.0,0.0008476]
[1740497373479,1.09022363,86901.0,86900.0,0.0008476]
[1740497373740,0.47264,86886.0,86885.0,0.0008478]
[1740497373945,0.47264,86886.0,86830.0,0.0772]
[1740497373946,0.3,86885.0,86830.0,0.0772]
[1740497374118,0.52966539,86875.0,86845.0,0.01568]
[1740497374314,1.39166539,86875.0,86845.0,0.01568]
[1740497374974,1.39166539,86875.0,86832.0,0.01568]
[1740497375203,1.40620624,86875.0,86833.0,0.10766521]
[1740497375406,1.39166539,86875.0,86833.0,0.10766521]
[1740497375574,1.39170608,86875.0,86838.0,0.172733]
[1740497375800,1.39170608,86875.0,86833.0,0.10766521]
[1740497376125,1.39170608,86875.0,86851.0,0.230277]
[1740497376333,1.39170608,86875.0,86845.0,0.17272]
[1740497376534,1.39170608,86875.0,86837.0,0.01568]
[1740497377322,0.91904508,86875.0,86838.0,0.00161187]
[1740497377526,1.09170608,86875.0,86845.0,0.09208686]
[1740497377731,1.39170608,86875.0,86845.0,0.09208686]
[1740497377933,1.39170608,86875.0,86839.0,0.01568]
[1740497378252,1.40624693,86875.0,86833.0,0.09198521]
[1740497378464,1.53663989,86875.0,86874.0,5e-07]
[1740497378752,0.172751,86830.0,86813.0,0.0008476]
[1740497378928,0.172751,86830.0,86815.0,0.01568]
[1740497378929,0.2330694,86830.0,86815.0,0.01568]
[1740497379604,0.230255,86861.0,86815.0,0.01568]
[1740497379753,0.02576557,86845.0,86816.0,0.09208686]
[1740497379921,0.92182105,86844.0,86822.0,0.172766]
[1740497380119,0.230303,86842.0,86825.0,0.230348]
[1740497380326,0.05992053,86841.0,86829.0,0.02397035]
[1740497380532,0.172751,86830.0,86829.0,0.0008505]
[1740497380733,0.2330694,86830.0,86829.0,0.0008505]
[1740497381150,0.0603184,86830.0,86829.0,0.0008505]
[1740497381378,0.2330694,86830.0,86829.0,0.0008505]
[1740497381870,1.3950694,86830.0,86829.0,0.0008505]
[1740497382046,1.50892636,86830.0,86829.0,0.0008505]
[1740497382247,1.52346721,86830.0,86829.0,0.0008505]
[1740497382421,1.40961025,86830.0,86829.0,0.0008505]
[1740497382605,1.14712646,86830.0,86829.0,0.0008505]
[1740497382812,1.30533661,86830.0,86829.0,0.0008505]
[1740497383009,1.30533661,86830.0,86829.0,0.0538375]
[1740497383218,1.31987746,86830.0,86829.0,0.0538375]
[1740497383531,0.472781,86815.0,86813.0,0.0008476]
[1740497383791,1.30536661,86815.0,86813.0,0.0008476]
[1740497384015,0.472783,86814.0,86813.0,6e-07]
[1740497384229,1.31990946,86814.0,86813.0,6e-07]
[1740497384368,1.34569314,86814.0,86813.0,6e-07]
[1740497384572,1.33115229,86814.0,86813.0,6e-07]
[1740497384803,1.03115229,86814.0,86813.0,6e-07]
[1740497384979,1.14500925,86814.0,86813.0,6e-07]
[1740497385182,1.04569314,86814.0,86813.0,6e-07]
[1740497385443,1.03115229,86814.0,86813.0,6e-07]
[1740497385651,1.02997419,86814.0,86813.0,6e-07]
[1740497386086,1.04451504,86814.0,86813.0,6e-07]
[1740497386945,1.02997419,86814.0,86813.0,6e-07]
[1740497388222,0.3279,86814.0,86813.0,6e-07]
[1740497388468,0.3279,86825.0,86813.0,6e-07]
[1740497389100,0.3279,86825.0,86814.0,0.02303906]
[1740497389344,0.172766,86823.0,86813.0,6e-07]
[1740497389546,0.3279,86825.0,86813.0,6e-07]
[1740497389773,0.3279,86825.0,86821.0,0.36853834]
[1740497389995,0.3279,86825.0,86813.0,6e-07]
[1740497390220,0.3279,86825.0,86813.0,0.03693954]
[1740497390434,0.3279,86825.0,86813.0,6e-07]
[1740497390678,0.3279,86825.0,86817.0,0.172776]
[1740497390867,0.230327,86833.0,86817.0,0.172776]
[1740497390868,0.83140751,86851.0,86821.0,0.36853834]
[1740497391092,0.83140751,86851.0,86830.0,0.36853834]
[1740497391415,0.83140751,86851.0,86842.0,0.172727]
[1740497391848,0.83140751,86851.0,86833.0,0.172745]
[1740497392054,0.83140751,86851.0,86833.0,0.01568]
[1740497392260,0.02603369,86860.0,86841.0,0.09212079]
[1740497392467,0.3279,86867.0,86841.0,0.09212079]
[1740497392608,0.83140751,86859.0,86841.0,0.09212079]
[1740497392810,0.83140751,86859.0,86831.0,0.09212079]
[1740497392811,0.3279,86842.0,86831.0,0.09212079]
[1740497393010,0.50350751,86841.0,86821.0,0.172769]
[1740497393239,0.50350751,86841.0,86816.0,0.01568]
[1740497393240,0.61736447,86841.0,86816.0,0.01568]
[1740497393448,0.50350751,86841.0,86816.0,0.01568]
[1740497393644,0.83140751,86840.0,86810.0,0.17279]
[1740497393849,0.83140751,86840.0,86816.0,0.09212079]
[1740497394263,0.83140751,86839.0,86813.0,6e-07]
[1740497394466,0.001697,86825.0,86813.0,6e-07]
[1740497394638,0.83140751,86824.0,86813.0,6e-07]
[1740497395028,0.50350751,86823.0,86813.0,6e-07]
[1740497395225,0.001697,86825.0,86813.0,6e-07]
[1740497395226,0.172783,86814.0,86813.0,6e-07]
[1740497395625,1.00419051,86814.0,86813.0,6e-07]
[1740497395853,1.41804747,86814.0,86813.0,6e-07]
[1740497396049,0.18733785,86807.0,86806.0,0.0008111]
[1740497396250,1.01874536,86807.0,86806.0,0.0008111]
[1740497396893,1.04436016,86807.0,86806.0,0.0008111]
[1740497397966,1.02981931,86807.0,86806.0,0.0008111]
[1740497398959,1.02971931,86807.0,86806.0,0.0008111]
[1740497399169,0.83140751,86807.0,86806.0,0.0008111]
[1740497399546,0.83140751,86807.0,86806.0,0.06566433]
[1740497399751,0.83140751,86807.0,86806.0,0.0008111]
[1740497400173,0.83130751,86807.0,86806.0,0.0008111]
[1740497400351,0.83130751,86807.0,86803.0,0.0130598]
[1740497400922,0.83120751,86807.0,86803.0,0.0130598]
[1740497401125,0.0463,86839.0,86803.0,0.0130598]
[1740497401126,0.14602581,86839.0,86806.0,0.09212079]
[1740497401338,0.14602581,86839.0,86824.0,0.56488379]
[1740497401339,0.001597,86825.0,86824.0,0.56488379]
[1740497401548,0.06201988,86882.0,86848.0,0.172715]
[1740497401549,0.02306487,86849.0,86848.0,0.172715]
[1740497401750,0.06201988,86882.0,86858.0,0.00866329]
[1740497401951,0.06191988,86882.0,86881.0,0.172649]
[1740497402124,0.06191988,86882.0,86858.0,0.00866329]
[1740497402330,0.172684,86864.0,86836.0,0.01568]
[1740497402532,0.00873588,86891.0,86847.0,0.09212079]
[1740497402747,0.345188,86909.0,86857.0,0.09212079]
[1740497402890,0.0477,86910.0,86857.0,0.09212079]
[1740497402891,0.0227266,86899.0,86857.0,0.09212079]
[1740497403090,0.0477,86910.0,86876.0,0.09212079]
[1740497403334,0.001697,86912.0,86894.0,0.09212079]
[1740497403774,0.001697,86901.0,86885.0,0.09212079]
[1740497403977,0.001697,86901.0,86895.0,0.09212079]
[1740497404230,0.001697,86901.0,86900.0,0.472612]
[1740497404431,0.001697,86929.0,86921.0,0.57257]
[1740497404659,0.001697,86929.0,86928.0,0.472556]
[1740497404865,0.001697,86929.0,86928.0,0.61129531]
[1740497405071,0.079,87000.0,86965.0,0.172481]
[1740497405271,0.02279103,86991.0,86966.0,0.36824783]
[1740497405481,0.01803421,86967.0,86948.0,0.36824783]
[1740497405891,0.01803421,86967.0,86925.0,0.46824783]
[1740497405892,0.01803421,86967.0,86924.0,0.01568]
[1740497406091,0.1484,86965.0,86897.0,0.01568]
[1740497406296,0.00849244,86955.0,86898.0,0.01306194]
[1740497406497,0.3,86950.0,86878.0,0.01568]
[1740497406674,0.3,86939.0,86885.0,0.01078008]
[1740497406850,0.0016954,86901.0,86878.0,0.01568]
[1740497407231,0.0016954,86901.0,86887.0,0.36824783]
[1740497407432,0.0016954,86901.0,86878.0,0.01568]
[1740497407635,0.0016954,86901.0,86868.0,0.0016114]
[1740497408124,0.0016954,86901.0,86878.0,0.3]
[1740497408295,0.0016954,86901.0,86879.0,0.05074797]
[1740497408514,0.0015954,86901.0,86867.0,0.09212079]
[1740497408929,0.0015954,86901.0,86858.0,0.034602]
[1740497409139,0.05190461,86884.0,86835.0,0.19212079]
[1740497409273,0.05180461,86879.0,86858.0,0.36824783]
[1740497409475,0.0015954,86901.0,86878.0,0.36824783]
[1740497409677,0.0015954,86901.0,86900.0,0.472612]
[1740497409879,0.05170461,86949.0,86904.0,0.31454085]
[1740497410081,0.05170461,86960.0,86917.0,0.01454085]
[1740497410303,0.01803421,86967.0,86951.0,0.36824783]
[1740497410482,0.01803421,86967.0,86952.0,0.11535747]
[1740497410689,0.01793421,86967.0,86942.0,0.36824783]
[1740497410902,0.05170461,86962.0,86933.0,0.36824783]
[1740497411109,0.05170461,86962.0,86816.0,1.13319631]
[1740497411110,0.05170461,86948.0,86934.0,0.03682478]
[1740497411319,0.05170461,86944.0,86901.0,0.00847324]
[1740497411513,0.05170461,86941.0,86921.0,0.36824783]
[1740497411761,0.05170461,86935.0,86901.0,0.00847324]
[1740497411992,0.05170461,86935.0,86900.0,0.3]
[1740497411993,0.05170461,86952.0,86913.0,0.1153581]
[1740497412170,0.01793421,86967.0,86922.0,0.36824783]
[1740497412375,0.05170461,86944.0,86923.0,0.00161039]
[1740497412557,0.05170461,86942.0,86922.0,0.36824783]
[1740497412736,0.28172861,86948.0,86922.0,0.48199536]
[1740497412937,0.01793421,86967.0,86943.0,0.36824783]
[1740497413157,0.0016952,86974.0,86952.0,0.36824783]
[1740497413365,0.05170461,86963.0,86944.0,0.03682478]
[1740497413579,0.05170461,86960.0,86944.0,0.03682478]
[1740497413938,0.0016952,86974.0,86932.0,0.36824783]
[1740497413939,0.05170461,86955.0,86932.0,0.36824783]
[1740497414191,0.05170461,86956.0,86932.0,0.36824783]
[1740497414435,0.05170461,86962.0,86933.0,0.00161025]
[1740497414661,0.229996,86958.0,86933.0,0.11374753]
[1740497414886,0.05170461,86952.0,86934.0,0.07120734]
[1740497415141,0.229962,86971.0,86912.0,0.36824783]
[1740497415142,0.05170461,86931.0,86912.0,0.36824783]
[1740497415368,0.05170461,86922.0,86886.0,0.01564]
[1740497415592,0.05170461,86940.0,86905.0,0.36824783]
[1740497415861,0.172519,86947.0,86914.0,0.36824783]
[1740497416075,0.05170461,86951.0,86923.0,0.36824783]
[1740497416309,0.05170461,86951.0,86933.0,0.36824783]
[1740497416529,0.0456,86975.0,86934.0,0.03843502]
[1740497416530,0.05170461,86959.0,86934.0,0.03843502]
[1740497416787,0.0456,86975.0,86934.0,0.03843502]
[1740497416788,0.0456,86975.0,86942.0,0.36824783]
[1740497417034,0.01193965,86992.0,86943.0,0.00160988]
[1740497417035,0.05170461,86960.0,86943.0,0.00160988]
[1740497417277,0.05170461,86965.0,86944.0,0.03859587]
[1740497417494,0.05170461,86946.0,86913.0,0.03458]
[1740497417694,0.05170461,86942.0,86893.0,0.1]
[1740497417930,0.05170461,86941.0,86903.0,0.230141]
[1740497418168,0.05170461,86936.0,86905.0,0.37694302]
[1740497418410,0.3,86970.0,86895.0,0.12885814]
[1740497418411,0.05170461,86917.0,86895.0,0.12885814]
[1740497418653,0.05170461,86909.0,86883.0,0.01564]
[1740497418895,0.05170461,86904.0,86868.0,0.02354703]
[1740497419136,0.05170461,86892.0,86868.0,0.02354703]
[1740497419646,0.0451,86912.0,86862.0,0.09203336]
[1740497419647,0.05170461,86902.0,86862.0,0.09203336]
[1740497419891,0.05170461,86892.0,86873.0,0.09203336]
[1740497420128,0.05170461,86898.0,86864.0,0.09203336]
[1740497420367,0.05170461,86890.0,86866.0,0.172679]
[1740497420582,0.05170461,86890.0,86865.0,0.11374753]
[1740497420789,0.05170461,86882.0,86866.0,0.02057809]
[1740497421008,0.05170461,86882.0,86864.0,0.09203336]
[1740497421214,0.05170461,86890.0,86865.0,0.11535905]
[1740497421414,0.0451,86912.0,86865.0,0.11535905]
[1740497421415,0.05170461,86896.0,86865.0,0.11535905]
[1740497421619,0.05170461,86884.0,86864.0,0.09203336]
[1740497421822,0.0451,86912.0,86865.0,0.12456236]
[1740497422025,0.2,86928.0,86865.0,0.00920334]
[1740497422234,0.2,86928.0,86864.0,0.09203336]
[1740497422235,0.1,86915.0,86852.0,0.09203336]
[1740497422440,0.3,86919.0,86843.0,0.172724]
[1740497422441,0.172679,86866.0,86843.0,0.172724]
[1740497422662,0.3,86902.0,86840.0,0.0086103]
[1740497422663,0.1,86892.0,86840.0,0.0086103]
[1740497422912,0.4,86890.0,86824.0,0.09212079]
[1740497423149,0.1,86870.0,86796.0,0.0472]
[1740497423394,0.1,86870.0,86798.0,0.230419]
[1740497423395,0.0660456,86869.0,86798.0,0.230419]
[1740497423661,0.1,86870.0,86799.0,0.2312665]
[1740497423923,0.00884893,86862.0,86807.0,0.09203336]
[1740497424159,0.172758,86827.0,86807.0,0.09203336]
[1740497424367,0.00884893,86862.0,86807.0,0.09203336]
[1740497424368,0.172745,86833.0,86808.0,0.11374753]
[1740497424572,0.172759,86826.0,86809.0,0.01454085]
[1740497424816,0.1,86869.0,86810.0,0.02342292]
[1740497425053,0.1,86869.0,86799.0,0.0008505]
[1740497425054,0.02343548,86839.0,86799.0,0.0008505]
[1740497425297,0.172797,86807.0,86799.0,0.0008505]
[1740497425778,0.19626467,86807.0,86799.0,0.0008505]
[1740497426265,0.172797,86807.0,86799.0,0.0008505]
[1740497426735,0.3,86816.0,86766.0,0.02217961]
[1740497426972,0.3,86816.0,86774.0,0.00311076]
[1740497426973,0.05354163,86802.0,86774.0,0.00311076]
[1740497427214,0.05354163,86802.0,86775.0,0.36863599]
[1740497427676,0.230412,86801.0,86775.0,0.36863599]
[1740497427884,0.05374078,86800.0,86774.0,0.00311076]
[1740497428099,0.05374078,86800.0,86760.0,0.17450225]
[1740497428312,0.05374078,86800.0,86780.0,0.36863599]
[1740497428521,0.00854995,86834.0,86781.0,0.00161296]
[1740497428732,0.05360801,86800.0,86761.0,0.05897406]
[1740497428929,0.05423869,86799.0,86759.0,0.077]
[1740497429147,0.3,86796.0,86743.0,0.06468]
[1740497429381,0.3,86796.0,86743.0,0.049]
[1740497429584,0.172824,86793.0,86759.0,0.36863599]
[1740497429797,0.05453746,86792.0,86759.0,0.36863599]
[1740497430019,0.05453746,86792.0,86760.0,0.03847698]
[1740497430212,0.05453746,86792.0,86760.0,0.15061113]
[1740497430405,0.05453746,86792.0,86772.0,0.36863599]
[1740497430847,0.05453746,86792.0,86765.0,0.000847]
[1740497431259,0.05453746,86792.0,86766.0,0.00161324]
[1740497431460,0.05453746,86792.0,86766.0,0.04079598]
[1740497431641,0.05453746,86792.0,86768.0,0.36863599]
[1740497431792,0.05427187,86792.0,86777.0,0.36863599]
[1740497432004,0.05427187,86791.0,86768.0,0.36863599]
[1740497432205,0.172878,86766.0,86765.0,0.000847]
[1740497432406,0.54540056,86766.0,86765.0,0.000847]
[1740497432607,0.3,86765.0,86742.0,0.0008474]
[1740497432831,0.472924,86743.0,86742.0,0.0008474]
[1740497433155,0.472924,86743.0,86742.0,0.0003474]
[1740497433156,0.52958674,86743.0,86742.0,0.0003474]
[1740497433306,0.64319806,86743.0,86742.0,4e-07]
[1740497433513,0.3,86727.0,86694.0,0.00161458]
[1740497433740,0.05782617,86727.0,86694.0,0.00161458]
[1740497433899,0.05782617,86727.0,86691.0,0.00161454]
[1740497434100,0.05782617,86727.0,86685.0,0.01568]
[1740497434532,0.05782617,86727.0,86686.0,0.173037]
[1740497434747,0.05782617,86727.0,86687.0,0.173036]
[1740497434951,0.05782617,86727.0,86691.0,0.00161466]
[1740497435175,0.05944088,86727.0,86690.0,0.00866292]
[1740497435382,0.35902298,86723.0,86678.0,0.0474477]
[1740497435768,0.230631,86719.0,86688.0,0.173033]
[1740497435967,0.4698737,86754.0,86704.0,0.26863599]
[1740497435968,0.05935552,86718.0,86704.0,0.26863599]
[1740497436214,0.00161471,86753.0,86713.0,0.36863599]
[1740497436427,1.151999,86806.0,86713.0,0.36863599]
[1740497436428,0.00161471,86765.0,86729.0,0.36863599]
[1740497436642,0.00872074,86788.0,86730.0,0.00161352]
[1740497436860,0.00161471,86787.0,86731.0,0.03702495]
[1740497437067,0.0556665,86783.0,86747.0,0.36863599]
[1740497437278,0.230496,86770.0,86747.0,0.36863599]
[1740497437501,0.05731441,86769.0,86738.0,0.36863599]
[1740497437675,0.0556997,86769.0,86739.0,0.00161378]
[1740497437811,0.00161471,86787.0,86741.0,0.01454085]
[1740497438013,0.05533438,86786.0,86772.0,0.36863599]
[1740497438242,0.09902423,86790.0,86782.0,0.172845]
[1740497438442,0.09902423,86790.0,86781.0,0.36863599]
[1740497438643,0.09902423,86790.0,86789.0,0.172832]
[1740497438846,0.09902423,86790.0,86781.0,0.36863599]
[1740497439248,0.09902423,86790.0,86762.0,0.07175604]
[1740497439473,0.09902423,86790.0,86767.0,0.230499]
[1740497439701,0.09902423,86790.0,86762.0,0.0492]
[1740497439702,0.0558202,86789.0,86762.0,0.0492]
[1740497439931,0.3558202,86789.0,86755.0,0.01568]
[1740497440145,0.09902423,86790.0,86755.0,0.01568]
[1740497440146,0.0564178,86788.0,86755.0,0.01568]
[1740497440369,0.05483628,86774.0,86738.0,0.36863599]
[1740497440587,0.05483628,86774.0,86739.0,0.0016138]
[1740497440836,0.00161471,86773.0,86738.0,0.36863599]
[1740497441067,0.05574299,86772.0,86739.0,0.0368636]
[1740497441279,0.05574299,86772.0,86738.0,0.36863599]
[1740497441280,0.00161471,86771.0,86738.0,0.36863599]
[1740497441511,0.00161471,86771.0,86732.0,0.09221317]
[1740497441512,0.05580943,86770.0,86732.0,0.09221317]
[1740497441694,0.00161471,86769.0,86732.0,0.09221317]
[1740497441898,0.00161471,86769.0,86733.0,0.01156564]
[1740497442154,0.172948,86731.0,86730.0,0.02344326]
[1740497442328,0.172969,86721.0,86714.0,0.034663]
[1740497442533,0.172948,86731.0,86730.0,0.02291093]
[1740497442760,0.3,86745.0,86708.0,0.01568]
[1740497442761,0.3,86745.0,86718.0,0.36891861]
[1740497442960,0.172926,86742.0,86730.0,0.02309759]
[1740497443095,0.2299687,86741.0,86719.0,0.03689186]
[1740497443294,0.172927,86742.0,86719.0,0.03689186]
[1740497443499,0.05740427,86741.0,86719.0,0.03689186]
[1740497443757,0.05740427,86741.0,86720.0,0.0016142]
[1740497443960,0.05740427,86741.0,86719.0,0.02255434]
[1740497444178,0.3,86739.0,86719.0,0.02255434]
[1740497444366,0.00161471,86738.0,86693.0,0.0485]
[1740497444566,0.230608,86728.0,86693.0,0.0485]
[1740497444782,0.172984,86713.0,86693.0,0.0485]
[1740497444988,0.05899999,86712.0,86684.0,0.01568]
[1740497445203,0.00161471,86737.0,86696.0,0.36891861]
[1740497445433,0.02336495,86748.0,86696.0,0.36891861]
[1740497445434,0.058335,86736.0,86705.0,0.36891861]
[1740497445658,0.288921,86736.0,86705.0,0.36891861]
[1740497445908,0.00161471,86735.0,86705.0,0.36891861]
[1740497446145,0.05810229,86732.0,86696.0,0.36891861]
[1740497446395,0.02336495,86748.0,86696.0,0.36891861]
[1740497446396,0.05850123,86726.0,86696.0,0.36891861]
[1740497446668,0.06011594,86725.0,86696.0,0.36891861]
[1740497446909,0.02336495,86748.0,86705.0,0.36891861]
[1740497447153,0.172954,86729.0,86708.0,0.172994]
[1740497447394,0.05820202,86728.0,86705.0,0.36891861]
[1740497447624,0.230608,86727.0,86705.0,0.36891861]
[1740497447854,0.230627,86720.0,86696.0,0.36891861]
[1740497448074,0.05890023,86719.0,86696.0,0.36891861]
[1740497448654,0.173003,86704.0,86696.0,0.36891861]
[1740497448850,0.05943231,86704.0,86687.0,0.09221317]
[1740497449091,0.17302,86695.0,86678.0,0.0008477]
[1740497449312,0.23281818,86695.0,86678.0,0.0008477]
[1740497449459,0.27318768,86695.0,86678.0,0.0008477]
[1740497449732,0.05979818,86695.0,86678.0,0.0008477]
[1740497449897,0.03630271,86722.0,86678.0,0.0008477]
[1740497450101,0.05890023,86721.0,86695.0,0.36891861]
[1740497450490,0.230653,86711.0,86695.0,0.36891861]
[1740497450696,0.05923277,86710.0,86694.0,0.000847]
[1740497450896,0.3,86719.0,86694.0,0.000847]
[1740497450897,0.17302,86695.0,86694.0,0.000847]
[1740497451207,0.23443289,86695.0,86694.0,0.000847]
[1740497451415,0.23281818,86695.0,86694.0,0.000847]
[1740497451612,0.53281818,86695.0,86694.0,0.000847]
[1740497452217,0.473052,86679.0,86653.0,0.02285407]
[1740497452572,0.53391478,86679.0,86638.0,0.09221317]
[1740497452712,0.64777174,86679.0,86638.0,0.09221317]
[1740497453237,0.23391478,86679.0,86638.0,0.09221317]
[1740497453403,0.23391478,86679.0,86647.0,0.36891861]
[1740497453802,0.06086278,86679.0,86647.0,0.36891861]
[1740497454011,0.230808,86652.0,86638.0,0.09221317]
[1740497454211,0.06305977,86651.0,86636.0,0.173136]
[1740497454450,0.06305977,86651.0,86627.0,0.2441207]
[1740497454653,0.17313,86640.0,86627.0,0.0132487]
[1740497454915,0.2365894,86640.0,86627.0,0.0132487]
[1740497456203,0.173154,86628.0,86627.0,0.0132487]
[1740497456434,0.23741283,86628.0,86627.0,0.0132487]
[1740497456853,0.53741283,86628.0,86627.0,0.0132487]
[1740497457086,0.53731283,86628.0,86627.0,0.0132487]
[1740497457347,0.23731283,86628.0,86627.0,0.0132487]
[1740497457543,0.06425883,86628.0,86627.0,0.0132487]
[1740497458208,0.23741283,86628.0,86627.0,0.0132487]
[1740497458473,0.20543782,86651.0,86627.0,0.0132487]
[1740497458702,0.0768,86667.0,86627.0,0.0132487]
[1740497458703,0.0634927,86650.0,86627.0,0.0132487]
[1740497458931,0.0634927,86649.0,86627.0,0.0132487]
[1740497459170,0.00161471,86648.0,86627.0,0.0132487]
[1740497459404,0.230826,86646.0,86627.0,0.0132487]
[1740497459630,0.06527394,86645.0,86629.0,0.230869]
[1740497459891,0.06365923,86645.0,86630.0,0.06130363]
[1740497460352,0.06365923,86645.0,86629.0,0.36891861]
[1740497460582,0.00161471,86644.0,86627.0,0.0132487]
[1740497460812,0.06524064,86644.0,86627.0,0.0132487]
[1740497461298,0.06372584,86643.0,86627.0,0.0132487]
[1740497461575,0.230842,86640.0,86627.0,0.0132487]
[1740497461799,0.173154,86628.0,86627.0,0.0132487]
[1740497462032,1.09941283,86628.0,86627.0,0.0132487]
[1740497462244,1.39941283,86628.0,86627.0,0.0132487]
[1740497462460,0.173226,86592.0,86591.0,0.0008488]
[1740497462667,0.173248,86581.0,86554.0,0.02328056]
[1740497462887,0.16541606,86544.0,86539.0,0.0132487]
[1740497463088,2.106667,86581.0,86539.0,0.0132487]
[1740497463089,0.5341,86543.0,86539.0,0.0132487]
[1740497463299,0.07002793,86542.0,86539.0,0.0132487]
[1740497463499,0.862,86552.0,86540.0,0.36891861]
[1740497463706,0.5341,86574.0,86551.0,0.36891861]
[1740497463913,0.07020763,86573.0,86540.0,0.36891861]
[1740497464117,0.06899331,86567.0,86540.0,0.36891861]
[1740497464324,0.06899331,86567.0,86549.0,0.36891861]
[1740497464538,0.00161471,86566.0,86549.0,0.36891861]
[1740497464743,0.00161471,86566.0,86540.0,0.36891861]
[1740497464744,0.98232924,86565.0,86540.0,0.36891861]
[1740497464953,0.98232924,86565.0,86539.0,0.0132487]
[1740497464954,0.173325,86543.0,86539.0,0.0132487]
[1740497465162,0.17331,86550.0,86543.0,0.00680704]
[1740497465385,0.17332,86545.0,86544.0,0.0008511]
[1740497465592,1.03532,86545.0,86544.0,0.0008511]
[1740497465999,1.10511428,86545.0,86544.0,0.0008511]
[1740497466205,1.10171165,86545.0,86544.0,0.0008511]
[1740497466413,0.93179428,86545.0,86544.0,0.0008511]
[1740497467302,0.25068881,86551.0,86544.0,0.0008511]
[1740497467528,0.06959401,86550.0,86548.0,0.173313]
[1740497467721,0.25068881,86551.0,86545.0,0.36891861]
[1740497468301,0.231085,86548.0,86544.0,0.0008511]
[1740497468661,0.17332,86545.0,86544.0,0.0008511]
[1740497468779,0.49380309,86545.0,86544.0,0.0008511]
[1740497469591,0.32048309,86545.0,86544.0,0.0008511]
[1740497469796,0.82170309,86545.0,86544.0,0.0008511]
[1740497471087,0.57858881,86545.0,86544.0,0.0008511]
[1740497471289,0.82170309,86545.0,86544.0,0.0008511]
[1740497471791,0.64838309,86545.0,86544.0,0.0008511]
[1740497471997,0.57858881,86545.0,86544.0,0.0008511]
[1740497472230,0.461931,86593.0,86544.0,0.0008511]
[1740497472231,0.25068881,86554.0,86544.0,0.0008511]
[1740497472479,0.3279,86565.0,86564.0,0.173282]
[1740497472707,0.57858881,86586.0,86561.0,0.00161719]
[1740497472933,0.32016252,86585.0,86573.0,0.36891861]
[1740497473166,0.31818092,86585.0,86573.0,0.36891861]
[1740497473396,0.8671,86626.0,86573.0,0.36891861]
[1740497473397,0.57858881,86615.0,86582.0,0.36891861]
[1740497473621,0.06619169,86608.0,86582.0,0.36891861]
[1740497473869,0.06642506,86603.0,86573.0,0.36891861]
[1740497474103,0.00161471,86602.0,86564.0,0.36891861]
[1740497474344,0.06722531,86578.0,86544.0,0.0008511]
[1740497474601,0.173294,86558.0,86544.0,0.0008511]
[1740497474833,0.31998246,86557.0,86544.0,0.0008511]
[1740497475059,0.25068881,86557.0,86545.0,0.36891861]
[1740497475296,0.25068881,86557.0,86554.0,0.36891861]
[1740497475523,0.06906005,86556.0,86545.0,0.36891861]
[1740497475760,0.25068881,86555.0,86545.0,0.36891861]
[1740497475982,0.25068881,86554.0,86550.0,0.173309]
[1740497476428,0.01835583,86575.0,86546.0,0.36891861]
[1740497476651,0.07034108,86574.0,86555.0,0.36891861]
[1740497476872,0.25068881,86591.0,86573.0,0.36891861]
[1740497477148,0.57858881,86619.0,86582.0,0.36891861]
[1740497477369,0.25068881,86618.0,86602.0,0.36891861]
[1740497477503,0.00161471,86617.0,86593.0,0.36891861]
[1740497477706,0.173246,86582.0,86581.0,0.034716]
[1740497477905,0.58020352,86615.0,86573.0,0.36891861]
[1740497478108,0.06649174,86593.0,86568.0,0.0186737]
[1740497478339,0.06729204,86586.0,86547.0,0.07170697]
[1740497478536,0.58020352,86585.0,86556.0,0.03689186]
[1740497478737,0.31864795,86584.0,86547.0,0.03697697]
[1740497478912,0.06802584,86579.0,86555.0,0.01825085]
[1740497479112,0.173272,86569.0,86544.0,0.0008511]
[1740497479313,0.06882657,86568.0,86544.0,0.0008511]
[1740497479537,0.57858881,86567.0,86544.0,0.0008511]
[1740497479741,0.17332,86545.0,86544.0,0.0008511]
[1740497479915,0.42400881,86545.0,86544.0,0.0008511]
[1740497480118,0.25068881,86545.0,86539.0,0.0120998]
[1740497480574,0.3279,86548.0,86539.0,0.03060731]
[1740497480575,0.25068881,86544.0,86539.0,0.03060731]
[1740497480775,0.32058335,86543.0,86539.0,0.03060731]
[1740497481095,0.17333,86540.0,86539.0,0.03060731]
[1740497481295,0.8235616,86540.0,86539.0,0.03060731]
[1740497481636,0.82194689,86540.0,86539.0,0.03060731]
[1740497482182,0.64861689,86540.0,86539.0,0.03060731]
[1740497482380,0.57858881,86540.0,86539.0,0.03060731]
[1740497483038,0.57858881,86540.0,86539.0,0.0120998]
[1740497483374,0.82194689,86540.0,86539.0,0.0120998]
[1740497483792,0.64861689,86540.0,86539.0,0.0120998]
[1740497484206,0.82194689,86540.0,86539.0,0.0120998]
[1740497485448,0.93580385,86540.0,86539.0,0.0120998]
[1740497485672,0.82194689,86540.0,86539.0,0.0120998]
[1740497486292,0.64861689,86540.0,86539.0,0.0120998]
[1740497486510,0.82194689,86540.0,86539.0,0.0120998]
[1740497487878,0.57858881,86540.0,86539.0,0.0120998]
[1740497488061,0.82194689,86540.0,86539.0,0.0120998]